[Event "*** Titled Tuesday Blitz"]
[Site "Chess.com"]
[Date "2019.11.05"]
[Round "3"]
[White "vlad_Sid"]
[Black "gena217"]
[Result "0-1"]
[WhiteElo "2513"]
[BlackElo "2923"]
[TimeControl "180+2"]
[EndTime "13:39:05 PST"]
[Termination "gena217 won by resignation"]

1. e4 {[%clk 0:03:01.9]} 1... c6 {[%clk 0:03:00.4]} 2. d4 {[%clk 0:03:01.1]}
2... d5 {[%clk 0:03:02.3]} 3. exd5 {[%clk 0:03:03]} 3... cxd5 {[%clk 0:03:04.2]}
4. Bd3 {[%clk 0:03:04.2]} 4... Nc6 {[%clk 0:03:04.6]} 5. c3 {[%clk 0:03:05.5]}
5... Nf6 {[%clk 0:03:04.3]} 6. Bf4 {[%clk 0:03:04]} 6... Bg4 {[%clk 0:03:05.5]}
7. Qb3 {[%clk 0:03:05.3]} 7... Qd7 {[%clk 0:03:06.2]} 8. Nd2 {[%clk 0:03:05.3]}
8... e6 {[%clk 0:03:07]} 9. Ngf3 {[%clk 0:03:06.4]} 9... Bd6 {[%clk 0:03:07.5]}
10. Bxd6 {[%clk 0:03:05.2]} 10... Qxd6 {[%clk 0:03:09.4]} 11. O-O {[%clk
0:03:02.8]} 11... O-O {[%clk 0:03:09.9]} 12. Rfe1 {[%clk 0:03:03.1]} 12... Qc7
{[%clk 0:03:09.9]} 13. Qc2 {[%clk 0:02:48.6]} 13... Bh5 {[%clk 0:02:57.4]} 14.
Ne5 {[%clk 0:02:39.4]} 14... Nxe5 {[%clk 0:02:48.8]} 15. Rxe5 {[%clk 0:02:27.2]}
15... Bg6 {[%clk 0:02:47.9]} 16. Bxg6 {[%clk 0:02:25.6]} 16... hxg6 {[%clk
0:02:49.8]} 17. h3 {[%clk 0:02:19.2]} 17... b5 {[%clk 0:02:49.9]} 18. Qd3 {[%clk
0:02:10]} 18... Rab8 {[%clk 0:02:49.5]} 19. b4 {[%clk 0:02:05.3]} 19... a5
{[%clk 0:02:47]} 20. a3 {[%clk 0:02:01.5]} 20... Rfc8 {[%clk 0:02:41]} 21. Re3
{[%clk 0:01:54.5]} 21... a4 {[%clk 0:02:09.1]} 22. g3 {[%clk 0:01:40.9]} 22...
Ne8 {[%clk 0:01:58]} 23. Rae1 {[%clk 0:01:37.6]} 23... Nd6 {[%clk 0:01:58.1]}
24. h4 {[%clk 0:01:36.2]} 24... Nf5 {[%clk 0:01:51.6]} 25. Rf3 {[%clk
0:01:33.9]} 25... Rb6 {[%clk 0:01:52]} 26. Rc1 {[%clk 0:00:58.5]} 26... Rc6
{[%clk 0:01:50.3]} 27. Nb1 {[%clk 0:00:34.5]} 27... Rc4 {[%clk 0:01:40.6]} 28.
Rd1 {[%clk 0:00:31.5]} 28... Nd6 {[%clk 0:01:40.7]} 29. Kg2 {[%clk 0:00:25.8]}
29... Ne4 {[%clk 0:01:40.6]} 30. Rc1 {[%clk 0:00:27.1]} 30... e5 {[%clk
0:01:26.6]} 31. dxe5 {[%clk 0:00:27.8]} 31... Qxe5 {[%clk 0:01:28.5]} 32. Rd1
{[%clk 0:00:28.4]} 32... Nf6 {[%clk 0:01:14.8]} 33. Re3 {[%clk 0:00:25.7]} 33...
Qc7 {[%clk 0:01:09.8]} 34. Rc1 {[%clk 0:00:21.7]} 34... d4 {[%clk 0:01:07.7]}
35. Rf3 {[%clk 0:00:21.6]} 35... Nd5 {[%clk 0:01:05.8]} 36. Qe2 {[%clk
0:00:10.5]} 36... Nxc3 {[%clk 0:01:04.5]} 37. Nxc3 {[%clk 0:00:11.2]} 37... dxc3
{[%clk 0:01:05.7]} 38. Rc2 {[%clk 0:00:11.9]} 38... Qc6 {[%clk 0:01:06.6]} 39.
Kh2 {[%clk 0:00:12.6]} 39... Re8 {[%clk 0:01:01.8]} 40. Qd3 {[%clk 0:00:13.9]}
40... Rc8 {[%clk 0:00:55.3]} 41. Qe3 {[%clk 0:00:12.5]} 41... Qd5 {[%clk
0:00:53.8]} 42. Kg2 {[%clk 0:00:12.7]} 42... Qd1 {[%clk 0:00:51.9]} 43. Qe7
{[%clk 0:00:11.9]} 43... R4c7 {[%clk 0:00:48.1]} 44. Qe4 {[%clk 0:00:12.5]}
44... Rc4 {[%clk 0:00:42]} 45. Qe7 {[%clk 0:00:09.2]} 45... Qd5 {[%clk
0:00:43.2]} 46. Qe3 {[%clk 0:00:04.1]} 46... R4c7 {[%clk 0:00:38.1]} 47. Rc1
{[%clk 0:00:04]} 47... c2 {[%clk 0:00:38.2]} 48. Qb6 {[%clk 0:00:04.7]} 48...
Rc3 {[%clk 0:00:37.7]} 0-1

[Event "*** Titled Tuesday Blitz"]
[Site "Chess.com"]
[Date "2019.11.05"]
[Round "3"]
[White "Pultis"]
[Black "Denis_Makhnyov"]
[Result "1-0"]
[WhiteElo "2717"]
[BlackElo "2911"]
[TimeControl "180+2"]
[EndTime "13:39:15 PST"]
[Termination "Pultis won by checkmate"]

1. Nf3 {[%clk 0:03:01.9]} 1... d5 {[%clk 0:02:55.1]} 2. g3 {[%clk 0:03:02.6]}
2... Bg4 {[%clk 0:02:56.1]} 3. Bg2 {[%clk 0:03:02.6]} 3... Nd7 {[%clk 0:02:57]}
4. O-O {[%clk 0:03:01.2]} 4... c6 {[%clk 0:02:58]} 5. d3 {[%clk 0:03:00.4]} 5...
Ngf6 {[%clk 0:02:56]} 6. c4 {[%clk 0:03:01.2]} 6... Bxf3 {[%clk 0:02:43.5]} 7.
Bxf3 {[%clk 0:03:00.7]} 7... dxc4 {[%clk 0:02:44.4]} 8. dxc4 {[%clk 0:03:01.5]}
8... Ne5 {[%clk 0:02:45.6]} 9. Qb3 {[%clk 0:03:02.4]} 9... Nxf3+ {[%clk
0:02:44.1]} 10. exf3 {[%clk 0:03:04.3]} 10... Qc8 {[%clk 0:02:38.3]} 11. f4
{[%clk 0:02:51.8]} 11... e6 {[%clk 0:02:38.5]} 12. f5 {[%clk 0:02:52.6]} 12...
Bc5 {[%clk 0:02:28.2]} 13. fxe6 {[%clk 0:02:49.3]} 13... Qxe6 {[%clk 0:02:27.4]}
14. Nc3 {[%clk 0:02:35.1]} 14... O-O {[%clk 0:02:26.1]} 15. Kg2 {[%clk
0:02:28.9]} 15... Bd4 {[%clk 0:01:43.1]} 16. Bd2 {[%clk 0:02:18.4]} 16... c5
{[%clk 0:00:56.9]} 17. Qa4 {[%clk 0:01:21.4]} 17... h5 {[%clk 0:00:41.6]} 18.
Rae1 {[%clk 0:01:19]} 18... Qf5 {[%clk 0:00:42.1]} 19. h3 {[%clk 0:01:07]} 19...
Rfe8 {[%clk 0:00:39.6]} 20. Qd1 {[%clk 0:00:53]} 20... Qd3 {[%clk 0:00:31.3]}
21. Bg5 {[%clk 0:00:51.2]} 21... Qxc4 {[%clk 0:00:31.6]} 22. Bxf6 {[%clk
0:00:52.2]} 22... Bxf6 {[%clk 0:00:30.5]} 23. Nd5 {[%clk 0:00:48.7]} 23... Qd4
{[%clk 0:00:20.9]} 24. Qxh5 {[%clk 0:00:45.7]} 24... Qxb2 {[%clk 0:00:18.3]} 25.
Rb1 {[%clk 0:00:39.5]} 25... Qd4 {[%clk 0:00:13.2]} 26. Rxb7 {[%clk 0:00:39.4]}
26... Rf8 {[%clk 0:00:06.1]} 27. Re1 {[%clk 0:00:39.1]} 27... Rad8 {[%clk
0:00:06.5]} 28. Rd1 {[%clk 0:00:30.9]} 28... Qe4+ {[%clk 0:00:07.2]} 29. Kg1
{[%clk 0:00:32.3]} 29... Qe5 {[%clk 0:00:07.2]} 30. Ne7+ {[%clk 0:00:22.8]}
30... Qxe7 {[%clk 0:00:07.8]} 31. Rxe7 {[%clk 0:00:24.1]} 31... Rxd1+ {[%clk
0:00:09.7]} 32. Qxd1 {[%clk 0:00:25.4]} 32... Bxe7 {[%clk 0:00:11.4]} 33. Qd7
{[%clk 0:00:27]} 33... Bf6 {[%clk 0:00:12.9]} 34. Qxa7 {[%clk 0:00:28]} 34... c4
{[%clk 0:00:14.4]} 35. Qc5 {[%clk 0:00:27.4]} 35... c3 {[%clk 0:00:15.7]} 36. g4
{[%clk 0:00:29]} 36... g6 {[%clk 0:00:16]} 37. a4 {[%clk 0:00:29]} 37... Rd8
{[%clk 0:00:14.1]} 38. a5 {[%clk 0:00:29.8]} 38... Rd2 {[%clk 0:00:14.8]} 39. a6
{[%clk 0:00:30.3]} 39... c2 {[%clk 0:00:16]} 40. a7 {[%clk 0:00:29.8]} 40...
Rd1+ {[%clk 0:00:17.2]} 41. Kg2 {[%clk 0:00:30.7]} 41... c1=Q {[%clk 0:00:19.1]}
42. a8=Q+ {[%clk 0:00:31.7]} 42... Kg7 {[%clk 0:00:20.7]} 43. Qcf8+ {[%clk
0:00:21]} 43... Kh7 {[%clk 0:00:22.1]} 44. Qxf7+ {[%clk 0:00:22.4]} 44... Kh6
{[%clk 0:00:23.6]} 45. Qxf6 {[%clk 0:00:23.3]} 45... Rg1+ {[%clk 0:00:24.2]} 46.
Kh2 {[%clk 0:00:24.5]} 46... Qc7+ {[%clk 0:00:20.7]} 47. Kxg1 {[%clk 0:00:24.4]}
47... Qc1+ {[%clk 0:00:22.6]} 48. Kg2 {[%clk 0:00:15.1]} 48... Qh1+ {[%clk
0:00:23.5]} 49. Kxh1 {[%clk 0:00:15.8]} 49... Kh7 {[%clk 0:00:24.1]} 50. Qah8#
{[%clk 0:00:17.4]} 1-0

[Event "*** Titled Tuesday Blitz"]
[Site "Chess.com"]
[Date "2019.11.05"]
[Round "3"]
[White "nailbeshirli"]
[Black "BlueWizzard"]
[Result "1-0"]
[WhiteElo "2651"]
[BlackElo "2843"]
[TimeControl "180+2"]
[EndTime "13:39:15 PST"]
[Termination "nailbeshirli won by resignation"]

1. e4 {[%clk 0:03:01.9]} 1... c6 {[%clk 0:03:01.1]} 2. Nc3 {[%clk 0:03:00.6]}
2... d5 {[%clk 0:03:02.2]} 3. d4 {[%clk 0:02:59.9]} 3... h6 {[%clk 0:03:00.1]}
4. Nf3 {[%clk 0:02:59]} 4... Bg4 {[%clk 0:02:59.9]} 5. h3 {[%clk 0:02:58]} 5...
Bxf3 {[%clk 0:02:59.3]} 6. Qxf3 {[%clk 0:02:57.7]} 6... e6 {[%clk 0:03:01.2]} 7.
Bd3 {[%clk 0:02:52.7]} 7... Nf6 {[%clk 0:02:54.1]} 8. Be3 {[%clk 0:02:43.8]}
8... dxe4 {[%clk 0:02:52.3]} 9. Nxe4 {[%clk 0:02:38.4]} 9... Nd5 {[%clk
0:02:53.4]} 10. O-O {[%clk 0:02:32.5]} 10... Nd7 {[%clk 0:02:44.8]} 11. a3
{[%clk 0:02:25.4]} 11... Be7 {[%clk 0:02:40.4]} 12. c4 {[%clk 0:02:23.5]} 12...
N5f6 {[%clk 0:02:41.1]} 13. Qg3 {[%clk 0:02:17.4]} 13... Nxe4 {[%clk 0:02:32.9]}
14. Bxe4 {[%clk 0:02:19.3]} 14... Nf6 {[%clk 0:02:33.2]} 15. Bf3 {[%clk
0:02:20.7]} 15... g5 {[%clk 0:02:14.1]} 16. Be2 {[%clk 0:02:02.8]} 16... Bd6
{[%clk 0:01:40.9]} 17. Qf3 {[%clk 0:02:03.4]} 17... Qe7 {[%clk 0:01:41]} 18.
Rfe1 {[%clk 0:01:58.3]} 18... Rg8 {[%clk 0:01:32.8]} 19. d5 {[%clk 0:01:55.4]}
19... c5 {[%clk 0:01:13.4]} 20. dxe6 {[%clk 0:01:55.5]} 20... fxe6 {[%clk
0:01:15.3]} 21. Rad1 {[%clk 0:01:53.5]} 21... g4 {[%clk 0:01:09.5]} 22. hxg4
{[%clk 0:01:52.5]} 22... Nxg4 {[%clk 0:01:10.7]} 23. Qe4 {[%clk 0:01:35.7]}
23... Nf6 {[%clk 0:00:57.5]} 24. Qh4 {[%clk 0:01:31.9]} 24... O-O-O {[%clk
0:00:52.6]} 25. Bf3 {[%clk 0:01:30.1]} 25... Qf7 {[%clk 0:00:42.6]} 26. b4
{[%clk 0:01:23.1]} 26... cxb4 {[%clk 0:00:24]} 27. axb4 {[%clk 0:01:17.2]} 27...
Nd5 {[%clk 0:00:23.7]} 28. cxd5 {[%clk 0:01:07.4]} 28... Qxf3 {[%clk 0:00:24.1]}
29. Rc1+ {[%clk 0:01:07.2]} 29... Kb8 {[%clk 0:00:21.8]} 30. Bxa7+ {[%clk
0:01:01.4]} 30... Kxa7 {[%clk 0:00:21.7]} 31. Ra1+ {[%clk 0:01:01.9]} 31... Kb8
{[%clk 0:00:22.3]} 32. Qxd8+ {[%clk 0:01:00.7]} 32... Rxd8 {[%clk 0:00:21]} 33.
gxf3 {[%clk 0:01:02.3]} 33... e5 {[%clk 0:00:22.7]} 34. Re4 {[%clk 0:00:59.5]}
34... h5 {[%clk 0:00:23]} 35. Kf1 {[%clk 0:01:00.2]} 35... Rc8 {[%clk
0:00:22.4]} 36. Rh4 {[%clk 0:00:57.2]} 36... Rf8 {[%clk 0:00:22.7]} 37. Ke2
{[%clk 0:00:58]} 37... Rc8 {[%clk 0:00:23.3]} 38. Ra2 {[%clk 0:00:58.8]} 38...
Rc3 {[%clk 0:00:23.2]} 39. Rb2 {[%clk 0:00:55.2]} 39... Ka7 {[%clk 0:00:22.2]}
40. Rxh5 {[%clk 0:00:55.7]} 40... Rc4 {[%clk 0:00:21.7]} 41. Ra2+ {[%clk
0:00:55.6]} 41... Kb8 {[%clk 0:00:22.8]} 42. b5 {[%clk 0:00:55.4]} 42... Kc7
{[%clk 0:00:21.5]} 43. Rh7+ {[%clk 0:00:54.1]} 43... Kb6 {[%clk 0:00:23]} 44.
Rh6 {[%clk 0:00:55.3]} 44... Kc5 {[%clk 0:00:24.5]} 45. Ra7 {[%clk 0:00:50.3]}
45... Rc2+ {[%clk 0:00:25.7]} 46. Kf1 {[%clk 0:00:50.8]} 46... Kxd5 {[%clk
0:00:25.4]} 47. Rxb7 {[%clk 0:00:46.9]} 47... Bc5 {[%clk 0:00:27]} 48. Rd7+
{[%clk 0:00:45.2]} 48... Kc4 {[%clk 0:00:28.2]} 49. b6 {[%clk 0:00:46.1]} 49...
Rxf2+ {[%clk 0:00:29.3]} 50. Ke1 {[%clk 0:00:46.9]} 50... Rb2 {[%clk 0:00:28.9]}
51. b7 {[%clk 0:00:43.1]} 51... Rb1+ {[%clk 0:00:25.3]} 52. Ke2 {[%clk 0:00:43]}
52... Rb2+ {[%clk 0:00:27.2]} 53. Kd1 {[%clk 0:00:41.9]} 53... Bd4 {[%clk
0:00:24.2]} 54. Rh8 {[%clk 0:00:33.6]} 54... Rb1+ {[%clk 0:00:23.4]} 55. Kc2
{[%clk 0:00:34.1]} 55... Rb2+ {[%clk 0:00:24.3]} 56. Kc1 {[%clk 0:00:35.6]}
56... Kc3 {[%clk 0:00:24.1]} 57. Rc8+ {[%clk 0:00:34.9]} 1-0

[Event "*** Titled Tuesday Blitz"]
[Site "Chess.com"]
[Date "2019.11.05"]
[Round "3"]
[White "nitpicker"]
[Black "bilelou"]
[Result "1-0"]
[WhiteElo "2305"]
[BlackElo "2535"]
[TimeControl "180+2"]
[EndTime "13:39:16 PST"]
[Termination "nitpicker won by checkmate"]

1. d4 {[%clk 0:03:01.9]} 1... e6 {[%clk 0:03:01]} 2. c4 {[%clk 0:03:01.7]} 2...
Nf6 {[%clk 0:03:02.5]} 3. g3 {[%clk 0:03:01.5]} 3... d5 {[%clk 0:03:03.1]} 4.
Nf3 {[%clk 0:03:01.9]} 4... dxc4 {[%clk 0:03:04.1]} 5. Bg2 {[%clk 0:03:02.2]}
5... Bd7 {[%clk 0:03:05.4]} 6. Ne5 {[%clk 0:02:59.4]} 6... Bc6 {[%clk 0:03:07]}
7. Nxc6 {[%clk 0:03:00.1]} 7... Nxc6 {[%clk 0:03:08.9]} 8. e3 {[%clk 0:03:01.2]}
8... Qd7 {[%clk 0:03:08]} 9. O-O {[%clk 0:02:51.5]} 9... Rd8 {[%clk 0:03:08.5]}
10. Qe2 {[%clk 0:02:51.5]} 10... e5 {[%clk 0:02:56.5]} 11. Bxc6 {[%clk
0:02:47.8]} 11... Qxc6 {[%clk 0:02:54.1]} 12. dxe5 {[%clk 0:02:48.7]} 12... Nd7
{[%clk 0:02:55.6]} 13. f4 {[%clk 0:02:44.4]} 13... b5 {[%clk 0:02:37.8]} 14. b3
{[%clk 0:02:17.8]} 14... Nb6 {[%clk 0:02:31.8]} 15. Na3 {[%clk 0:02:12.8]} 15...
Rd3 {[%clk 0:02:18]} 16. bxc4 {[%clk 0:01:48.2]} 16... bxc4 {[%clk 0:02:13.5]}
17. Nc2 {[%clk 0:01:38.1]} 17... Bc5 {[%clk 0:02:07.5]} 18. Bb2 {[%clk 0:01:21]}
18... Qe4 {[%clk 0:01:59.4]} 19. Rfe1 {[%clk 0:01:17.6]} 19... O-O {[%clk
0:01:59.2]} 20. Bd4 {[%clk 0:01:17.8]} 20... Na4 {[%clk 0:01:48]} 21. Rac1
{[%clk 0:01:01.7]} 21... Nc3 {[%clk 0:01:38.8]} 22. Qg2 {[%clk 0:00:38.9]} 22...
Qxg2+ {[%clk 0:01:31.4]} 23. Kxg2 {[%clk 0:00:39.8]} 23... Rd2+ {[%clk
0:01:32.6]} 24. Kf3 {[%clk 0:00:40.8]} 24... Bxd4 {[%clk 0:01:26.3]} 25. Nxd4
{[%clk 0:00:41.7]} 25... Rd3 {[%clk 0:01:21.6]} 26. Rc2 {[%clk 0:00:38.5]} 26...
c5 {[%clk 0:01:18.9]} 27. Nf5 {[%clk 0:00:37.3]} 27... g6 {[%clk 0:01:16]} 28.
Nd6 {[%clk 0:00:38.1]} 28... Rb8 {[%clk 0:01:12.1]} 29. Nxc4 {[%clk 0:00:37.3]}
29... Kg7 {[%clk 0:01:11.1]} 30. Rec1 {[%clk 0:00:35.4]} 30... Nd5 {[%clk
0:01:11.4]} 31. Ke4 {[%clk 0:00:32.7]} 31... Nb4 {[%clk 0:01:06.5]} 32. Rb2
{[%clk 0:00:33.7]} 32... Rbd8 {[%clk 0:01:05.3]} 33. Nd6 {[%clk 0:00:34.8]}
33... Ra3 {[%clk 0:01:02]} 34. Rxc5 {[%clk 0:00:32.8]} 34... Ra4 {[%clk
0:01:02.8]} 35. Rc4 {[%clk 0:00:31.8]} 35... a5 {[%clk 0:01:03.7]} 36. g4 {[%clk
0:00:24.1]} 36... Ra3 {[%clk 0:01:02.5]} 37. f5 {[%clk 0:00:21.9]} 37... h5
{[%clk 0:01:01.5]} 38. gxh5 {[%clk 0:00:19.2]} 38... gxh5 {[%clk 0:01:01.7]} 39.
Rg2+ {[%clk 0:00:20]} 39... Kf8 {[%clk 0:01:00.1]} 40. f6 {[%clk 0:00:21.1]}
40... Nxa2 {[%clk 0:00:43.9]} 41. Rg7 {[%clk 0:00:21.3]} 41... Nc3+ {[%clk
0:00:45.4]} 42. Kf5 {[%clk 0:00:18.7]} 42... Nd5 {[%clk 0:00:42.7]} 43. Rxf7+
{[%clk 0:00:16.6]} 43... Kg8 {[%clk 0:00:37.6]} 44. Rg7+ {[%clk 0:00:16.9]}
44... Kf8 {[%clk 0:00:38.8]} 45. Ke6 {[%clk 0:00:06]} 45... Nxf6 {[%clk
0:00:24.7]} 46. Kxf6 {[%clk 0:00:04.4]} 46... Rxe3 {[%clk 0:00:24.8]} 47. Rf7+
{[%clk 0:00:04.5]} 47... Kg8 {[%clk 0:00:25.9]} 48. Rcc7 {[%clk 0:00:04.8]}
48... Rf3+ {[%clk 0:00:25.9]} 49. Nf5 {[%clk 0:00:06.2]} 49... a4 {[%clk
0:00:18.5]} 50. e6 {[%clk 0:00:07.3]} 50... a3 {[%clk 0:00:15.7]} 51. Rg7+
{[%clk 0:00:08.4]} 51... Kh8 {[%clk 0:00:17.1]} 52. Rh7+ {[%clk 0:00:09.3]}
52... Kg8 {[%clk 0:00:18.1]} 53. Rcg7+ {[%clk 0:00:10.9]} 53... Kf8 {[%clk
0:00:19.3]} 54. Rh8# {[%clk 0:00:12.4]} 1-0

[Event "*** Titled Tuesday Blitz"]
[Site "Chess.com"]
[Date "2019.11.05"]
[Round "3"]
[White "sandropozo"]
[Black "dimke2802"]
[Result "1/2-1/2"]
[WhiteElo "2635"]
[BlackElo "2438"]
[TimeControl "180+2"]
[EndTime "13:39:24 PST"]
[Termination "Game drawn by agreement"]

1. d4 {[%clk 0:03:01.9]} 1... Nf6 {[%clk 0:03:00.2]} 2. Nf3 {[%clk 0:03:01.8]}
2... g6 {[%clk 0:02:57.9]} 3. g3 {[%clk 0:03:00.2]} 3... Bg7 {[%clk 0:02:58.7]}
4. Bg2 {[%clk 0:03:01.8]} 4... O-O {[%clk 0:02:59.4]} 5. O-O {[%clk 0:03:03.3]}
5... d6 {[%clk 0:03:00.4]} 6. c4 {[%clk 0:03:02]} 6... c6 {[%clk 0:03:01.6]} 7.
Nc3 {[%clk 0:03:02.9]} 7... Bf5 {[%clk 0:03:02.3]} 8. Ne1 {[%clk 0:02:51.4]}
8... Be6 {[%clk 0:03:02.5]} 9. b3 {[%clk 0:02:41.9]} 9... d5 {[%clk 0:03:02.8]}
10. Nd3 {[%clk 0:02:37.6]} 10... dxc4 {[%clk 0:03:03.2]} 11. Nf4 {[%clk
0:02:37.9]} 11... Qc8 {[%clk 0:03:04.3]} 12. Nxe6 {[%clk 0:02:08.7]} 12... Qxe6
{[%clk 0:03:04.4]} 13. e4 {[%clk 0:02:00.5]} 13... Rd8 {[%clk 0:03:03.6]} 14.
Be3 {[%clk 0:01:38.1]} 14... cxb3 {[%clk 0:02:51.1]} 15. Qxb3 {[%clk 0:01:35.1]}
15... Qxb3 {[%clk 0:02:49.2]} 16. axb3 {[%clk 0:01:37]} 16... Na6 {[%clk
0:02:48.6]} 17. h3 {[%clk 0:01:32.3]} 17... Ne8 {[%clk 0:02:49.1]} 18. e5 {[%clk
0:01:32.5]} 18... Nec7 {[%clk 0:02:45.7]} 19. f4 {[%clk 0:01:29.2]} 19... e6
{[%clk 0:02:30.8]} 20. Ne4 {[%clk 0:01:28]} 20... Nb5 {[%clk 0:02:28.3]} 21.
Rfd1 {[%clk 0:01:27.2]} 21... Nac7 {[%clk 0:02:27.5]} 22. g4 {[%clk 0:01:21.8]}
22... Nd5 {[%clk 0:02:19.9]} 23. Kf2 {[%clk 0:01:18.9]} 23... Bf8 {[%clk
0:02:20]} 24. Bf1 {[%clk 0:01:17.2]} 24... Nbc3 {[%clk 0:02:16.6]} 25. Nxc3
{[%clk 0:01:14.8]} 25... Nxc3 {[%clk 0:02:18]} 26. Rdc1 {[%clk 0:01:14.2]} 26...
Nd5 {[%clk 0:02:18.9]} 27. Bc4 {[%clk 0:01:06.1]} 27... a6 {[%clk 0:02:19.5]}
28. Rd1 {[%clk 0:01:04.2]} 28... Rac8 {[%clk 0:02:17.5]} 29. f5 {[%clk
0:01:04.7]} 29... Nxe3 {[%clk 0:02:11.9]} 30. Kxe3 {[%clk 0:01:06.6]} 30... b5
{[%clk 0:01:51.1]} 31. Be2 {[%clk 0:00:59.1]} 31... c5 {[%clk 0:01:52.1]} 32.
dxc5 {[%clk 0:00:57.2]} 32... Bxc5+ {[%clk 0:01:52.2]} 33. Ke4 {[%clk
0:00:58.9]} 33... exf5+ {[%clk 0:01:49.2]} 34. gxf5 {[%clk 0:00:59]} 34... gxf5+
{[%clk 0:01:50.1]} 35. Kxf5 {[%clk 0:00:58.5]} 35... Rxd1 {[%clk 0:01:43.4]} 36.
Rxd1 {[%clk 0:01:00.4]} 36... Rc6 {[%clk 0:01:43.4]} 37. Rd7 {[%clk 0:00:58]}
37... Bb6 {[%clk 0:01:39.6]} 38. Bh5 {[%clk 0:00:56.6]} 38... Rc7 {[%clk
0:01:36.6]} 39. Bxf7+ {[%clk 0:00:57.5]} 39... Kf8 {[%clk 0:01:35.3]} 40. Rxc7
{[%clk 0:00:56.3]} 40... Bxc7 {[%clk 0:01:36.4]} 41. Bd5 {[%clk 0:00:58.1]}
41... Ke7 {[%clk 0:01:36.2]} 42. Bb7 {[%clk 0:00:58.2]} 42... a5 {[%clk
0:01:37.1]} 43. Bc6 {[%clk 0:00:58.4]} 43... b4 {[%clk 0:01:29.9]} 44. Bd5
{[%clk 0:00:59.7]} 44... h6 {[%clk 0:01:29]} 45. Bc4 {[%clk 0:01:00.4]} 45...
Bb6 {[%clk 0:01:29.2]} 46. e6 {[%clk 0:01:01.4]} 46... Bc7 {[%clk 0:01:24.5]}
47. Ke4 {[%clk 0:01:01.6]} 47... Kd6 {[%clk 0:01:24.7]} 48. Kf5 {[%clk 0:01:02]}
48... Ke7 {[%clk 0:01:25.7]} 49. h4 {[%clk 0:01:01.4]} 49... Bb8 {[%clk
0:01:15.1]} 50. h5 {[%clk 0:01:00.9]} 50... Bc7 {[%clk 0:01:16.1]} 51. Ke4
{[%clk 0:00:59.7]} 51... Kd6 {[%clk 0:01:16.4]} 52. Kf5 {[%clk 0:00:59.8]} 52...
Ke7 {[%clk 0:01:17.5]} 53. Bd3 {[%clk 0:01:00.5]} 53... Bb8 {[%clk 0:01:17.6]}
54. Bb5 {[%clk 0:00:59.8]} 54... Bc7 {[%clk 0:01:17.9]} 55. Bc4 {[%clk
0:00:58.7]} 55... Bb8 {[%clk 0:01:18.5]} 56. Kg6 {[%clk 0:00:59.8]} 56... Bf4
{[%clk 0:01:18.7]} 57. Kf5 {[%clk 0:01:00.8]} 57... Bb8 {[%clk 0:01:19.6]} 58.
Bd5 {[%clk 0:00:59]} 58... Bc7 {[%clk 0:01:18.5]} 59. Bc6 {[%clk 0:00:57.3]}
59... Bb8 {[%clk 0:01:19.3]} 60. Ba4 {[%clk 0:00:58.7]} 60... Bc7 {[%clk
0:01:20]} 61. Bd7 {[%clk 0:00:57.6]} 61... Bb8 {[%clk 0:01:20.9]} 62. Ke4 {[%clk
0:00:52]} 62... Kd6 {[%clk 0:01:12.5]} 63. Kd4 {[%clk 0:00:45.5]} 63... Bc7
{[%clk 0:01:10.7]} 64. Kc4 {[%clk 0:00:46.5]} 64... Bd8 {[%clk 0:01:10.9]} 65.
Kb5 {[%clk 0:00:46.4]} 65... Bf6 {[%clk 0:01:06]} 66. Kxa5 {[%clk 0:00:45]}
66... Bc3 {[%clk 0:01:07]} 67. Kb5 {[%clk 0:00:45.8]} 67... Ke7 {[%clk
0:01:08.5]} 68. Kc6 {[%clk 0:00:46.4]} 68... Be1 {[%clk 0:01:10]} 69. Bc8 {[%clk
0:00:46.6]} 69... Bc3 {[%clk 0:01:11.4]} 70. Kd5 {[%clk 0:00:47.2]} 70... Be1
{[%clk 0:01:13.3]} 71. Ke5 {[%clk 0:00:47.6]} 71... Bc3+ {[%clk 0:01:14.8]} 72.
Kf5 {[%clk 0:00:49.1]} 72... Be1 {[%clk 0:01:15.7]} 73. Bd7 {[%clk 0:00:49.9]}
73... Bd2 {[%clk 0:01:16.7]} 74. Bb5 {[%clk 0:00:51]} 74... Be1 {[%clk
0:01:16.3]} 75. Bc4 {[%clk 0:00:52.5]} 75... Bc3 {[%clk 0:01:16.2]} 1/2-1/2